bitfinex-derivatives/quotes_BTCF0:USTF0_20250626
["timestamp","ask_amount","ask_price","bid_price","bid_amount"]
[1750968686921,0.33938549,107640.0,107630.0,1.2044201]
[1750968687126,0.33963372,107640.0,107630.0,1.2044201]
[1750968689026,0.33963372,107640.0,107630.0,0.8436201]
[1750968689230,0.33963372,107640.0,107630.0,1.2044201]
[1750968693534,0.69560453,107640.0,107630.0,1.2044201]
[1750968695132,0.33963372,107640.0,107630.0,1.2044201]
[1750968696436,0.60660405,107640.0,107630.0,1.47139043]
[1750968697638,0.60660405,107640.0,107630.0,0.89519043]
[1750968697838,0.60660405,107640.0,107630.0,1.47135043]
[1750968704137,0.60660405,107640.0,107630.0,1.11055043]
[1750968704344,0.60660405,107640.0,107630.0,1.47135043]
[1750968705436,0.60660405,107640.0,107630.0,1.50165043]
[1750968705642,0.57550405,107640.0,107630.0,1.50165043]
[1750968709142,0.57550405,107640.0,107630.0,1.14085043]
[1750968709443,0.57550405,107640.0,107630.0,1.50165043]
[1750968710540,0.54370405,107640.0,107630.0,1.50165043]
[1750968711147,0.54370405,107640.0,107630.0,1.59419321]
[1750968711643,0.54370405,107640.0,107630.0,1.32722288]
[1750968711844,0.54370405,107640.0,107630.0,1.59419321]
[1750968713848,0.54370405,107640.0,107630.0,1.50165043]
[1750968714944,0.54370405,107640.0,107630.0,1.2346801]
[1750968715447,0.54370405,107640.0,107630.0,1.50165043]
[1750968721153,0.27673372,107640.0,107630.0,1.50165043]
[1750968721354,0.54370405,107640.0,107630.0,1.50165043]
[1750968722254,0.54370405,107640.0,107630.0,1.14085043]
[1750968722554,0.54370405,107640.0,107630.0,1.50165043]
[1750968725256,0.81067438,107640.0,107630.0,1.50165043]
[1750968725660,0.81067438,107640.0,107630.0,0.5848]
[1750968725849,0.87447438,107640.0,107630.0,0.1947581]
[1750968726049,0.90537438,107640.0,107630.0,0.009]
[1750968726557,0.90537438,107640.0,107630.0,0.01824816]
[1750968726856,0.90537438,107640.0,107630.0,0.009]
[1750968727050,0.90537438,107640.0,107630.0,0.1947581]
[1750968727246,0.37143372,107640.0,107630.0,0.1947581]
[1750968727459,0.90537438,107640.0,107630.0,0.1947581]
[1750968729654,0.37143372,107640.0,107630.0,0.1947581]
[1750968729851,0.90537438,107640.0,107630.0,0.1947581]
[1750968731758,0.90537438,107640.0,107630.0,0.20424849]
[1750968735564,1.48101438,107640.0,107630.0,0.20424849]
[1750968736362,1.48101438,107640.0,107630.0,0.56504849]
[1750968738763,1.48101438,107640.0,107630.0,0.20424849]
[1750968743161,0.90537438,107640.0,107630.0,0.20424849]
[1750968743361,0.27673372,107640.0,107630.0,0.83201882]
[1750968743560,0.27673372,107640.0,107630.0,0.92741882]
[1750968745163,0.54370405,107640.0,107630.0,0.92741882]
[1750968748673,0.54370405,107640.0,107630.0,0.66044849]
[1750968748972,0.54370405,107640.0,107630.0,0.92741882]
[1750968749470,0.81067438,107640.0,107630.0,0.92741882]
[1750968751878,0.81067438,107640.0,107630.0,0.66044849]
[1750968753476,0.81067438,107640.0,107630.0,0.29964849]
[1750968760091,0.81067438,107640.0,107630.0,0.56661882]
[1750968760290,0.81067438,107640.0,107630.0,0.29964849]
[1750968763092,0.81067438,107640.0,107630.0,0.56661882]
[1750968763292,0.81067438,107640.0,107630.0,0.92741882]
[1750968764886,0.27673372,107640.0,107630.0,0.92741882]
[1750968765086,0.81067438,107640.0,107630.0,0.92741882]
[1750968767094,0.81067438,107640.0,107630.0,0.56661882]
[1750968767296,0.81067438,107640.0,107630.0,0.92741882]
[1750968769099,0.27673372,107640.0,107630.0,0.92741882]
[1750968769300,0.54370405,107640.0,107630.0,0.92741882]
[1750968770299,0.27673372,107640.0,107630.0,0.92741882]
[1750968770492,0.54370405,107640.0,107630.0,0.92741882]
[1750968771200,0.54370405,107640.0,107630.0,1.50233882]
[1750968772602,0.81067438,107640.0,107630.0,1.50233882]
[1750968775006,0.84207438,107640.0,107630.0,1.23528849]
[1750968777104,0.87347438,107640.0,107630.0,0.6509581]
[1750968777405,0.90517438,107640.0,107630.0,0.6187581]
[1750968777606,0.90517438,107640.0,107630.0,0.5555581]
[1750968777811,0.90517438,107640.0,107630.0,0.1947581]
[1750968792120,0.90517438,107640.0,107630.0,0.2277581]
[1750968792320,0.90517438,107640.0,107630.0,0.009]
[1750968793723,1.26597438,107640.0,107630.0,0.009]
[1750968793923,1.26597438,107640.0,107630.0,0.194758]
[1750968794324,1.29275895,107640.0,107630.0,0.194758]
[1750968796939,1.29275895,107640.0,107630.0,0.009]
[1750968800352,0.75881829,107640.0,107630.0,0.009]
[1750968800549,1.29275895,107640.0,107630.0,0.009]
[1750968803846,0.1857581,107630.0,107620.0,0.00092915]
[1750968804043,1.87123876,107630.0,107620.0,0.00092915]
[1750968804242,1.89847972,107630.0,107620.0,0.00092915]
[1750968804940,1.89947972,107630.0,107620.0,0.00592915]
[1750968805146,1.89947453,107630.0,107620.0,0.00592915]
[1750968805544,1.89947453,107630.0,107620.0,0.00892915]
[1750968806549,1.89847453,107630.0,107620.0,0.00592915]
[1750968809247,1.89838596,107630.0,107620.0,0.00592915]
[1750968810454,1.3644453,107630.0,107620.0,0.00592915]
[1750968810654,1.89838596,107630.0,107620.0,0.00592915]
[1750968819161,1.89888242,107630.0,107620.0,0.00592915]
[1750968822954,1.53808242,107630.0,107620.0,0.00592915]
[1750968823160,1.89888242,107630.0,107620.0,0.00592915]
[1750968826363,1.89888242,107630.0,107620.0,0.03692915]
[1750968826364,1.86522242,107630.0,107620.0,0.03692915]
[1750968826666,1.86522242,107630.0,107620.0,0.09792915]
[1750968839668,1.50442242,107630.0,107620.0,0.09792915]
[1750968839973,1.86522242,107630.0,107620.0,0.09792915]
[1750968842678,1.29134242,107630.0,107620.0,0.09792915]
[1750968842874,1.86486242,107630.0,107620.0,0.09792915]
[1750968844577,1.50406242,107630.0,107620.0,0.09792915]
[1750968844879,1.86486242,107630.0,107620.0,0.09792915]
[1750968850582,1.50406242,107630.0,107620.0,0.09792915]
[1750968850770,1.86486242,107630.0,107620.0,0.09792915]
[1750968851979,1.50406242,107630.0,107620.0,0.09792915]
[1750968852179,1.86486242,107630.0,107620.0,0.09792915]
[1750968856779,0.33340176,107630.0,107620.0,0.28370445]
[1750968856983,0.33340176,107630.0,107620.0,1.31364511]
[1750968857281,0.30675102,107630.0,107620.0,1.31364511]
[1750968857484,0.57372135,107630.0,107620.0,1.04667478]
[1750968858882,0.57372135,107630.0,107620.0,0.91147478]
[1750968859180,0.57372135,107630.0,107620.0,1.04667478]
[1750968860079,0.57372135,107630.0,107620.0,0.77970445]
[1750968860281,0.57372135,107630.0,107620.0,1.04667478]
[1750968860979,0.57372135,107630.0,107620.0,0.28370445]
[1750968861182,1.77453168,107630.0,107620.0,0.09792915]
[1750968861481,1.77453168,107630.0,107620.0,0.00592915]
[1750968861482,1.83753168,107630.0,107620.0,0.00592915]
[1750968862471,1.26449168,107630.0,107620.0,0.00592915]
[1750968862679,1.83749168,107630.0,107620.0,0.00592915]
[1750968863580,0.1857926,107610.0,107600.0,0.1982]
[1750968863787,0.1858099,107600.0,107590.0,0.0462754]
[1750968863984,1.22065056,107600.0,107590.0,0.0462754]
[1750968864284,1.22114702,107600.0,107590.0,0.0462754]
[1750968864885,1.22114702,107600.0,107590.0,0.0794754]
[1750968865486,1.48811735,107600.0,107590.0,0.00592941]
[1750968865692,1.52001735,107600.0,107590.0,0.00592941]
[1750968865985,1.28324702,107600.0,107590.0,0.00592941]
[1750968866386,1.10564121,107600.0,107590.0,0.00592941]
[1750968867282,1.10564121,107600.0,107590.0,0.00092941]
[1750968868688,1.13242992,107600.0,107590.0,0.00092941]
[1750968868885,1.13342992,107600.0,107590.0,0.00392941]
[1750968869481,1.10564121,107600.0,107590.0,0.00092941]
[1750968869688,1.10564121,107600.0,107590.0,0.00292941]
[1750968870788,1.10564121,107600.0,107590.0,0.18875651]
[1750968872190,1.46197606,107600.0,107590.0,0.00292941]
[1750968872391,1.48867937,107600.0,107590.0,0.00292941]
[1750968872690,1.13234452,107600.0,107590.0,0.00292941]
[1750968873989,1.10564121,107600.0,107590.0,0.00292941]
[1750968874590,1.10564121,107600.0,107590.0,0.18875651]
[1750968875388,1.10564121,107600.0,107590.0,0.00292941]
[1750968878193,1.10564121,107600.0,107590.0,0.18875651]
[1750968879594,1.10564121,107600.0,107590.0,0.00292941]
[1750968885201,1.10613767,107600.0,107590.0,0.00292941]
[1750968886306,1.28428036,107600.0,107590.0,0.00292941]
[1750968890005,1.85716036,107600.0,107590.0,0.00292941]
[1750968890205,1.85716036,107600.0,107590.0,0.18875651]
[1750968890399,1.31097358,107600.0,107590.0,0.18875651]
[1750968890601,1.85365358,107600.0,107590.0,0.06682941]
[1750968891010,1.49285358,107600.0,107590.0,0.06682941]
[1750968891210,1.85365358,107600.0,107590.0,0.06682941]
[1750968893018,1.82696036,107600.0,107590.0,0.06682941]
[1750968893311,1.85369914,107600.0,107590.0,0.06682941]
[1750968895310,1.85372657,107600.0,107590.0,0.06682941]
[1750968896414,0.13775913,107600.0,107590.0,1.24149528]
[1750968896607,0.29680272,107600.0,107590.0,1.24149528]
[1750968896912,0.29680272,107600.0,107590.0,1.37637528]
[1750968897715,0.18680272,107600.0,107590.0,1.37637528]
[1750968899615,0.45404149,107600.0,107590.0,1.37637528]
[1750968900222,0.18680272,107600.0,107590.0,1.46532666]
[1750968910031,0.18680272,107600.0,107590.0,1.10452666]
[1750968913226,0.00099292,107600.0,107590.0,1.10452666]
[1750968913424,0.0002,107610.0,107600.0,0.1858098]
[1750968913624,0.0002,107620.0,107610.0,0.1857926]
[1750968913831,0.2788574,107630.0,107620.0,0.1857753]
[1750968914029,0.3986574,107630.0,107620.0,0.8507353]
[1750968915428,0.4006574,107630.0,107620.0,0.8507353]
[1750968915727,0.307773,107630.0,107620.0,1.2115353]
[1750968916534,0.307773,107630.0,107620.0,1.22068301]
[1750968916931,0.311773,107630.0,107620.0,1.22068301]
[1750968917323,0.376773,107630.0,107620.0,1.22068301]
[1750968917633,0.73296315,107630.0,107620.0,1.22068301]
[1750968923232,0.73296315,107630.0,107620.0,1.19058301]
[1750968924633,0.73296315,107630.0,107620.0,0.82978301]
[1750968926731,0.73296315,107630.0,107620.0,0.86268301]
[1750968928434,0.64381777,107630.0,107620.0,0.86268301]
[1750968930137,0.376773,107630.0,107620.0,1.22348301]
[1750968930332,0.64381777,107630.0,107620.0,1.49052778]
[1750968935434,0.3117581,107630.0,107620.0,1.77260578]
[1750968935638,0.57880287,107630.0,107620.0,1.50556101]
[1750968942834,0.126,107630.0,107620.0,1.77260578]
[1750968943044,0.126,107630.0,107620.0,1.50556101]
[1750968943944,0.39304477,107630.0,107620.0,1.50556101]
[1750968944136,0.57880277,107630.0,107620.0,1.50556101]
[1750968951144,0.57880277,107630.0,107620.0,1.86636101]
[1750968951847,0.311758,107630.0,107620.0,1.86636101]
[1750968952046,0.57880277,107630.0,107620.0,1.86636101]
[1750968955843,0.126,107630.0,107620.0,2.13340578]
[1750968956048,0.006,107630.0,107620.0,2.13340578]
[1750968962446,0.006,107630.0,107620.0,1.59931624]
[1750968962755,0.006,107630.0,107620.0,2.13340578]
[1750968966655,0.006,107630.0,107620.0,1.59931624]
[1750968966952,0.006,107630.0,107620.0,2.13340578]
[1750968969653,0.006,107630.0,107620.0,2.26680578]
[1750968969852,0.006,107630.0,107620.0,0.57075624]
[1750968969853,0.84584754,107630.0,107620.0,0.57075624]
[1750968970059,0.7034395,107630.0,107620.0,1.14243624]
[1750968971652,0.7034395,107630.0,107620.0,0.57075624]
[1750968971959,0.7034395,107630.0,107620.0,1.14239624]
[1750968972254,0.79246347,107630.0,107620.0,1.14239624]
[1750968973257,0.76542674,107630.0,107620.0,1.14239624]
[1750968973662,0.76542674,107630.0,107620.0,0.20080853]
[1750968973962,0.76542674,107630.0,107620.0,0.77244853]
[1750968975152,0.1857753,107620.0,107610.0,0.8292797]
[1750968975358,0.75874404,107620.0,107610.0,0.6485526]
[1750968975654,0.75874404,107620.0,107610.0,1.1737475]
[1750968975856,0.75874404,107620.0,107610.0,0.1948632]
[1750968976158,0.75874404,107620.0,107610.0,0.7665032]
[1750968976657,0.1857926,107610.0,107600.0,1.62525145]
[1750968976955,0.73676134,107610.0,107600.0,2.19689145]
[1750968977151,0.73676134,107610.0,107600.0,2.2061304]
[1750968977946,0.73676134,107610.0,107600.0,2.2071304]
[1750968979159,0.73676134,107610.0,107600.0,1.3707304]
[1750968986966,0.73676134,107610.0,107600.0,1.4672304]
[1750968987664,0.3806926,107610.0,107600.0,1.4672304]
[1750968988065,0.3157926,107610.0,107600.0,1.82329914]
[1750968993469,0.3157926,107610.0,107600.0,1.4672304]
[1750968998269,0.58289434,107610.0,107600.0,1.73433214]
[1750968998572,0.58289434,107610.0,107600.0,1.37353214]
[1750968998867,0.58289434,107610.0,107600.0,1.73433214]
[1750968999663,0.58289434,107610.0,107600.0,1.37353214]
[1750968999870,0.58289434,107610.0,107600.0,1.73433214]
[1750969016580,0.58289434,107610.0,107600.0,1.37353214]
[1750969016780,0.58289434,107610.0,107600.0,1.73433214]
[1750969017280,0.58289434,107610.0,107600.0,1.37353214]
[1750969017483,0.58289434,107610.0,107600.0,1.4672304]
[1750969017677,0.58289434,107610.0,107600.0,1.73433214]
[1750969020076,0.58289434,107610.0,107600.0,1.60005214]
[1750969023692,0.58289434,107610.0,107600.0,0.98196014]
[1750969023891,0.58289434,107610.0,107600.0,1.55340014]
[1750969024088,0.1858099,107600.0,107590.0,0.00092941]
[1750969024288,1.21081338,107600.0,107590.0,0.00092941]
[1750969024497,0.91301338,107600.0,107590.0,0.75815651]
[1750969024696,0.58291164,107600.0,107590.0,1.12015825]
[1750969025091,0.58291164,107600.0,107590.0,1.1295174]
[1750969025595,0.58291164,107600.0,107590.0,1.1315174]
[1750969025797,0.58291164,107600.0,107590.0,1.1335174]
[1750969026596,0.58291164,107600.0,107590.0,1.4943174]
[1750969026797,0.58291164,107600.0,107590.0,1.22721566]
[1750969026992,0.58291164,107600.0,107590.0,1.4943174]
[1750969028197,0.3158099,107600.0,107590.0,1.4943174]
[1750969028592,0.1858099,107600.0,107590.0,1.4943174]
[1750969028792,0.45291164,107600.0,107590.0,1.4943174]
[1750969030894,0.45291164,107600.0,107590.0,1.6283974]
[1750969031595,0.72001338,107600.0,107590.0,1.36129566]
[1750969032196,0.54204551,107600.0,107590.0,1.36129566]
[1750969033606,0.54204551,107600.0,107590.0,1.00049566]
[1750969033798,0.54204551,107600.0,107590.0,1.36129566]
[1750969034101,0.54204551,107600.0,107590.0,1.00049566]
[1750969034297,0.54204551,107600.0,107590.0,1.36129566]
[1750969034900,0.56204551,107600.0,107590.0,1.36129566]
[1750969036102,0.56204551,107600.0,107590.0,0.65581566]
[1750969036300,0.56204551,107600.0,107590.0,1.36125566]
[1750969036603,0.56204551,107600.0,107590.0,0.65581566]
[1750969036802,0.56204551,107600.0,107590.0,1.36125566]
[1750969038804,0.2058099,107600.0,107590.0,1.36125566]
[1750969039203,0.2058099,107600.0,107590.0,0.65581566]
[1750969039398,0.2058099,107600.0,107590.0,1.36125566]
[1750969041908,0.2058099,107600.0,107590.0,0.65581566]
[1750969042107,0.2058099,107600.0,107590.0,1.36121566]
[1750969047210,0.2058099,107600.0,107590.0,1.00041566]
[1750969047419,0.2058099,107600.0,107590.0,1.36121566]
[1750969050315,0.56204551,107600.0,107590.0,1.36121566]
[1750969051615,0.56204551,107600.0,107590.0,0.65581566]
[1750969051817,0.56204551,107600.0,107590.0,1.36101566]
[1750969052215,0.74016072,107600.0,107590.0,0.92299107]
[1750969052419,0.74016072,107600.0,107590.0,1.62819107]
[1750969054020,0.74016072,107600.0,107590.0,1.26739107]
[1750969054220,0.74016072,107600.0,107590.0,1.62819107]
[1750969054619,0.74016072,107600.0,107590.0,1.26739107]
[1750969054921,0.74016072,107600.0,107590.0,1.62819107]
[1750969056217,0.74016072,107600.0,107590.0,1.36101566]
[1750969056518,0.74016072,107600.0,107590.0,1.62819107]
[1750969057321,0.74016072,107600.0,107590.0,1.26739107]
[1750969057521,0.74016072,107600.0,107590.0,1.62819107]
[1750969058122,0.74016072,107600.0,107590.0,1.36101566]
[1750969059324,0.74016072,107600.0,107590.0,0.78977566]
[1750969059523,0.80056072,107600.0,107590.0,1.36097566]
[1750969061933,0.80056072,107600.0,107590.0,1.00017566]
[1750969062227,0.80056072,107600.0,107590.0,1.36097566]
[1750969062629,0.80056072,107600.0,107590.0,1.00017566]
[1750969067829,0.02,107600.0,107590.0,0.92299107]
[1750969068131,0.0002,107610.0,107600.0,0.1858098]
[1750969068332,0.62897541,107660.0,107640.0,0.1857408]
[1750969068333,0.60918051,107650.0,107640.0,0.1857408]
[1750969068530,0.71221471,107650.0,107640.0,1.38479621]
[1750969068730,0.71221471,107650.0,107640.0,1.41719621]
[1750969068930,0.71221471,107650.0,107640.0,1.44929621]
[1750969070332,0.3057235,107650.0,107640.0,1.1821208]
[1750969071936,0.3137235,107650.0,107640.0,1.1821208]
[1750969072441,0.3197235,107650.0,107640.0,1.1831208]
[1750969072936,0.3197235,107650.0,107640.0,1.1922038]
[1750969074630,0.6755979,107650.0,107640.0,1.1922038]
[1750969080141,0.3197235,107650.0,107640.0,1.1922038]
[1750969080340,0.6755979,107650.0,107640.0,1.1922038]
[1750969083042,0.3197235,107650.0,107640.0,1.1922038]
[1750969085238,0.6755979,107650.0,107640.0,1.1922038]
[1750969088043,0.3197235,107650.0,107640.0,1.1922038]
[1750969088244,0.6755979,107650.0,107640.0,1.1922038]
[1750969088542,0.3197235,107650.0,107640.0,1.1922038]
[1750969088731,0.6755979,107650.0,107640.0,1.1922038]
[1750969088934,0.134,107650.0,107640.0,1.5480782]
[1750969089141,0.3197235,107650.0,107640.0,1.5480782]
[1750969089440,0.3197235,107650.0,107640.0,1.1922038]
[1750969090244,0.58663058,107650.0,107640.0,1.45911088]
[1750969099052,0.014,107650.0,107640.0,1.72601796]
[1750969099653,0.28090708,107650.0,107640.0,1.45911088]
[1750969099852,0.46663058,107650.0,107640.0,1.45911088]
[1750969102954,0.46663058,107650.0,107640.0,1.1922038]
[1750969103252,0.46663058,107650.0,107640.0,1.45911088]
[1750969109657,0.5408891,107650.0,107640.0,1.45911088]
[1750969109860,0.46663058,107650.0,107640.0,1.45911088]
[1750969110355,0.014,107650.0,107640.0,1.45911088]
[1750969110561,0.46663058,107650.0,107640.0,1.45911088]
[1750969111061,0.28090708,107650.0,107640.0,1.72601796]
[1750969111560,0.014,107650.0,107640.0,1.72601796]
[1750969112660,0.28090708,107650.0,107640.0,1.72601796]
[1750969114958,0.014,107650.0,107640.0,1.72601796]
[1750969115156,0.014,107650.0,107640.0,2.29172504]
[1750969115662,0.014,107650.0,107640.0,2.02481796]
[1750969116776,0.01,107650.0,107640.0,2.02381796]
[1750969117464,0.004,107650.0,107640.0,2.02381796]
[1750969118380,0.004,107650.0,107640.0,2.38461796]
[1750969118577,0.004,107650.0,107640.0,1.66301796]
[1750969118777,0.004,107650.0,107640.0,2.38461796]
[1750969119382,0.004,107650.0,107640.0,3.22081796]
[1750969120579,1e-07,107650.0,107640.0,3.22081796]
[1750969121080,1e-07,107650.0,107640.0,3.35076191]
[1750969121581,1e-07,107650.0,107640.0,3.61766899]
[1750969123380,1e-07,107650.0,107640.0,3.48772504]
[1750969125079,1e-07,107650.0,107640.0,2.6870038]
[1750969125278,1e-07,107650.0,107640.0,3.22081796]
[1750969127986,1e-07,107650.0,107640.0,3.48772504]
[1750969129087,1e-07,107650.0,107640.0,3.61766899]
[1750969130989,1e-07,107650.0,107640.0,3.35076191]
[1750969131188,1e-07,107650.0,107640.0,2.62916191]
[1750969131388,1e-07,107650.0,107640.0,3.35076191]
[1750969132991,1e-07,107650.0,107640.0,2.62916191]
[1750969133193,1e-07,107650.0,107640.0,3.35076191]
[1750969134282,1e-07,107650.0,107640.0,3.48324191]
[1750969135890,1e-07,107650.0,107640.0,2.77968191]
[1750969136090,1e-07,107650.0,107640.0,3.48320191]
[1750969140598,1e-07,107650.0,107640.0,3.48312191]
[1750969141896,1e-07,107650.0,107640.0,2.76152191]
[1750969142098,1e-07,107650.0,107640.0,3.48312191]
[1750969142600,1e-07,107650.0,107640.0,2.94930775]
[1750969142798,1e-07,107650.0,107640.0,3.48312191]
[1750969146304,1e-07,107650.0,107640.0,2.79442191]
[1750969146505,1e-07,107650.0,107640.0,3.51602191]
[1750969148605,1e-07,107650.0,107640.0,3.21722191]
[1750969148997,1e-07,107650.0,107640.0,2.49562191]
[1750969149202,1e-07,107650.0,107640.0,3.21722191]
[1750969150804,0.26690718,107650.0,107640.0,1.88256775]
[1750969150997,0.36400718,107650.0,107640.0,2.58572775]
[1750969151200,0.36400718,107650.0,107640.0,2.72269088]
[1750969151502,0.54973068,107650.0,107640.0,2.72269088]
[1750969152100,0.54973068,107650.0,107640.0,2.72265088]
[1750969152908,0.54973068,107650.0,107640.0,2.01953088]
[1750969153112,0.54973068,107650.0,107640.0,2.72265088]
[1750969156207,0.36400718,107650.0,107640.0,2.72265088]
[1750969157011,0.54973068,107650.0,107640.0,2.72265088]
[1750969162508,0.54973068,107650.0,107640.0,2.36185088]
[1750969164913,0.54973068,107650.0,107640.0,2.00105088]
[1750969165115,0.54973068,107650.0,107640.0,2.36185088]
[1750969165409,0.54973068,107650.0,107640.0,1.5251838]
[1750969165610,0.54973068,107650.0,107640.0,2.36177088]
[1750969173030,0.54973068,107650.0,107640.0,1.52557088]
[1750969173934,0.54973068,107650.0,107640.0,0.5556238]
[1750969174131,0.54973068,107650.0,107640.0,1.52529088]
[1750969175336,0.54973068,107650.0,107640.0,1.58739088]
[1750969175635,0.54973068,107650.0,107640.0,1.22659088]
[1750969175836,0.54973068,107650.0,107640.0,1.58739088]
[1750969176834,0.51713068,107650.0,107640.0,1.61869088]
[1750969177233,0.87793068,107650.0,107640.0,0.55513088]
[1750969177433,0.53713068,107650.0,107640.0,1.25781088]
[1750969182238,0.47263068,107650.0,107640.0,0.2882238]
[1750969182441,0.53573068,107650.0,107640.0,0.9908638]
[1750969193446,0.53573068,107650.0,107640.0,1.25777088]
[1750969193642,0.47263068,107650.0,107640.0,1.25777088]
[1750969196648,0.47263068,107650.0,107640.0,0.9908638]
[1750969199646,0.47263068,107650.0,107640.0,1.25777088]
[1750969202846,0.28690718,107650.0,107640.0,1.61857088]
[1750969203050,0.2057236,107650.0,107640.0,1.88547796]
[1750969203249,0.1857236,107650.0,107640.0,1.3516638]
[1750969203445,0.45263068,107650.0,107640.0,1.88547796]
[1750969203746,0.45263068,107650.0,107640.0,1.61857088]
[1750969205744,0.45263068,107650.0,107640.0,1.3516638]
[1750969205948,0.45263068,107650.0,107640.0,1.61857088]
[1750969208650,0.45263068,107650.0,107640.0,1.6340708]
[1750969209950,0.47263068,107650.0,107640.0,1.6340708]
[1750969211955,0.47263068,107650.0,107640.0,1.2732708]
[1750969212155,0.47263068,107650.0,107640.0,1.6340708]
[1750969222362,0.49937765,107650.0,107640.0,1.6340708]
[1750969229965,0.49947484,107650.0,107640.0,1.6340708]
[1750969232267,0.47263068,107650.0,107640.0,1.6340708]
[1750969234663,0.47263068,107650.0,107640.0,1.90097788]
[1750969235269,0.47263068,107650.0,107640.0,1.6340708]
[1750969235870,0.2057236,107650.0,107640.0,1.6340708]
[1750969236072,0.47263068,107650.0,107640.0,1.6340708]
[1750969251693,0.2057236,107650.0,107640.0,1.6340708]
[1750969251894,0.47263068,107650.0,107640.0,1.6340708]
[1750969256298,0.2057236,107650.0,107640.0,1.6340708]
[1750969256494,0.47263068,107650.0,107640.0,1.6340708]
[1750969263209,0.69311516,107650.0,107630.0,0.43463516]
[1750969263500,0.69311516,107650.0,107620.0,1.6391523]
[1750969263501,0.185758,107630.0,107620.0,1.6391523]
[1750969263702,0.53266508,107630.0,107620.0,1.89824]
[1750969263913,0.59686508,107630.0,107620.0,2.0840153]
[1750969264311,0.59686508,107630.0,107620.0,1.3828153]
[1750969264606,0.59686508,107630.0,107620.0,2.0870153]
[1750969264793,0.59686508,107630.0,107620.0,2.0961698]
[1750969264999,0.59686508,107630.0,107620.0,1.0341698]
[1750969265197,0.59686508,107630.0,107620.0,1.7354098]
[1750969265404,0.59686508,107630.0,107620.0,1.7372098]
[1750969265599,0.329958,107630.0,107620.0,2.06891688]
[1750969265804,0.59686508,107630.0,107620.0,2.06891688]
[1750969268210,0.53266508,107630.0,107620.0,2.42971688]
[1750969271212,0.53266508,107630.0,107620.0,1.59347688]
[1750969271412,0.53266508,107630.0,107620.0,1.62567688]
[1750969271913,0.53266508,107630.0,107620.0,1.3587698]
[1750969272112,0.53266508,107630.0,107620.0,1.62567688]
[1750969273403,0.34690708,107630.0,107620.0,1.62567688]
[1750969273604,0.185758,107630.0,107620.0,2.25338396]
[1750969276715,0.45266508,107630.0,107620.0,1.98647688]
[1750969278017,0.45266508,107630.0,107620.0,1.62567688]
[1750969283620,0.45266508,107630.0,107620.0,1.89258396]
[1750969285623,0.45266508,107630.0,107620.0,1.53178396]
[1750969285925,0.45266508,107630.0,107620.0,1.89258396]
[1750969287924,0.45266508,107630.0,107620.0,1.62567688]
[1750969290935,0.45266508,107630.0,107620.0,1.26487688]
[1750969291234,0.45266508,107630.0,107620.0,1.62567688]
[1750969294443,0.45266508,107630.0,107620.0,1.3587698]
[1750969294638,0.45266508,107630.0,107620.0,1.62567688]
[1750969296537,1.09957216,107630.0,107620.0,0.005]
[1750969296749,0.1858098,107600.0,107590.0,0.18675131]
[1750969296938,0.85962396,107600.0,107590.0,0.00092941]
[1750969297137,0.95772396,107600.0,107590.0,0.00092941]
[1750969297338,1.31852396,107600.0,107590.0,0.00092941]
[1750969297945,1.32052396,107600.0,107590.0,0.01292941]
[1750969299140,1.32052396,107600.0,107590.0,0.01392941]
[1750969299947,1.31852396,107600.0,107590.0,0.00392941]
[1750969300247,1.49742774,107600.0,107590.0,0.00392941]
[1750969300446,1.49742774,107600.0,107590.0,0.18975651]
[1750969300646,1.49742774,107600.0,107590.0,0.00392941]
[1750969302041,1.14106877,107600.0,107590.0,0.00392941]
[1750969306254,0.78026877,107600.0,107590.0,0.00392941]
[1750969306454,1.14106877,107600.0,107590.0,0.00392941]
[1750969308560,1.49742774,107600.0,107590.0,0.00392941]
[1750969313058,2.06566774,107600.0,107590.0,0.00392941]
[1750969317160,1.70486774,107600.0,107590.0,0.00392941]
[1750969317365,2.42646774,107600.0,107590.0,0.00392941]
[1750969322368,2.51561134,107600.0,107590.0,0.00392941]
[1750969323467,2.54346549,107600.0,107590.0,0.00392941]
[1750969324376,2.51036549,107600.0,107590.0,1e-08]
[1750969324669,2.54076549,107600.0,107590.0,1e-08]
[1750969327378,1.64334395,107600.0,107590.0,1e-08]
[1750969327560,2.17791831,107600.0,107590.0,0.09580001]
[1750969331777,1.81711831,107600.0,107590.0,0.09580001]
[1750969334078,2.08440549,107600.0,107590.0,0.09580001]
[1750969334686,1.81711831,107600.0,107590.0,0.09580001]
[1750969335287,2.08440549,107600.0,107590.0,0.09580001]
[1750969337594,2.08436549,107600.0,107590.0,0.09580001]
[1750969338692,1.51632549,107600.0,107590.0,0.09580001]
[1750969338892,2.08436549,107600.0,107590.0,0.09580001]
[1750969341099,1.72356549,107600.0,107590.0,0.09580001]
[1750969341297,2.08436549,107600.0,107590.0,0.09580001]
[1750969344091,1.24903831,107600.0,107590.0,0.09580001]
[1750969344298,2.08432549,107600.0,107590.0,0.09580001]
[1750969344498,1.81703831,107600.0,107590.0,0.09580001]
[1750969346494,2.08432549,107600.0,107590.0,0.09580001]
[1750969346998,1.72352549,107600.0,107590.0,0.09580001]
[1750969347198,2.08432549,107600.0,107590.0,0.09580001]
[1750969350402,1.81703831,107600.0,107590.0,0.09580001]
[1750969351498,1.24903831,107600.0,107590.0,0.28162711]
[1750969351799,0.88823831,107600.0,107590.0,0.28162711]
[1750969352005,1.45619831,107600.0,107590.0,0.28162711]
[1750969356905,0.92162395,107600.0,107590.0,0.28162711]
[1750969357205,1.45619831,107600.0,107590.0,0.28162711]
[1750969358506,1.42834416,107600.0,107590.0,0.28162711]
[1750969360206,0.86038416,107600.0,107590.0,0.28162711]
[1750969366712,0.88837729,107600.0,107590.0,0.28162711]
[1750969366908,0.86038416,107600.0,107590.0,0.28162711]
[1750969367703,0.31393708,107610.0,107600.0,0.1858098]
[1750969367908,0.6304356,107610.0,107600.0,1.04075698]
[1750969368206,0.60244148,107610.0,107600.0,1.04075698]
[1750969368712,0.60344148,107610.0,107600.0,1.04075698]
[1750969369011,0.60344148,107610.0,107600.0,1.60855698]
[1750969369514,0.60444148,107610.0,107600.0,1.60855698]
[1750969371515,0.59444148,107610.0,107600.0,1.60855698]
[1750969371714,0.54799138,107610.0,107600.0,1.60855698]
[1750969373318,0.26928718,107610.0,107600.0,1.60855698]
[1750969373517,0.002,107610.0,107600.0,2.40868307]
[1750969373816,0.0002,107620.0,107610.0,0.1857925]
[1750969374003,0.1867589,107630.0,107610.0,0.1857925]
[1750969374004,0.1869589,107630.0,107620.0,0.2013244]
[1750969374204,0.186758,107630.0,107620.0,1.59029158]
[1750969374405,0.001,107630.0,107620.0,1.59029158]
[1750969374616,0.186758,107630.0,107620.0,1.59029158]
[1750969374813,0.186758,107630.0,107620.0,1.66617056]
[1750969375316,0.45404518,107630.0,107620.0,1.39888338]
[1750969375616,0.45404518,107630.0,107620.0,1.66617056]
[1750969375811,0.45804518,107630.0,107620.0,1.66717056]
[1750969376011,0.46204518,107630.0,107620.0,1.66717056]